bitfinex/quotes_ETHUSD_20251015
["timestamp","ask_amount","ask_price","bid_price","bid_amount"]
[1760542840364,14.0911255,3998.2,3996.2,0.2369]
[1760542840365,4.22956347,3997.5,3996.2,0.2369]
[1760542840923,1.728,3997.5,3996.6,0.4306]
[1760542841162,0.6336,3998.6,3997.1,0.2369]
[1760542841366,2.50126287,3998.0,3997.4,0.4326]
[1760542841571,0.214,3998.8,3997.4,0.4326]
[1760542841572,2.50077421,3998.8,3997.4,0.4326]
[1760542841774,2.50074796,3998.9,3998.1,2.50114122]
[1760542841957,2.50025002,3999.6,3998.2,0.2369]
[1760542842363,0.2166,3999.7,3997.5,0.29342736]
[1760542842543,2.50089351,3998.6,3997.8,2.5013475]
[1760542842870,0.2119,3998.9,3997.6,0.4306]
[1760542843176,2.50107059,3998.3,3997.6,0.4306]
[1760542843330,2.52619289,3998.2,3997.6,0.4306]
[1760542843532,2.50104148,3998.4,3997.4,0.002]
[1760542843839,2.50099328,3998.5,3997.4,0.002]
[1760542844040,1.728,3998.8,3997.5,0.4306]
[1760542844277,1.728,3999.2,3997.6,0.2934275]
[1760542844430,2.50113848,3998.2,3997.5,0.4306]
[1760542844639,1.728,3999.2,3997.5,0.4306]
[1760542844640,0.02504711,3998.1,3997.5,0.4306]
[1760542844833,4.22956347,3997.5,3997.4,0.002]
[1760542845273,4.34176347,3997.5,3997.4,0.002]
[1760542845843,4.22956347,3997.5,3997.4,0.002]
[1760542846042,4.36681058,3997.5,3997.4,0.002]
[1760542846272,5.00041058,3997.5,3997.4,0.002]
[1760542846476,4.86322605,3997.4,3995.6,0.2369]
[1760542846687,4.86322605,3997.4,3994.9,0.2369]
[1760542846688,0.1248,3995.6,3995.3,0.2369]
[1760542846830,2.52673574,3997.3,3995.3,0.2369]
[1760542846831,0.02504711,3995.5,3995.3,0.2369]
[1760542847030,0.1248,3995.4,3995.3,0.2369]
[1760542847272,1.728,3996.7,3995.3,0.6675]
[1760542847485,1.728,3996.7,3994.9,0.2369]
[1760542847486,0.02504711,3996.6,3994.9,0.2369]
[1760542847797,0.1165,3996.7,3994.9,0.2369]
[1760542847798,2.5020642,3996.7,3995.4,0.2369]
[1760542847933,1.728,3996.5,3995.5,0.4306]
[1760542848132,0.2182,3997.2,3995.5,0.4306]
[1760542848333,2.50178186,3997.2,3996.4,2.50222813]
[1760542848568,2.50106849,3998.3,3996.8,2.50198201]
[1760542848739,2.50183985,3997.1,3996.4,0.5004621]
[1760542848944,1.728,3997.8,3996.4,0.4306]
[1760542849145,1.728,3997.7,3996.4,0.4306]
[1760542849346,2.50171558,3997.3,3996.6,2.50211296]
[1760542849543,1.728,3997.7,3996.4,0.4306]
[1760542849768,1.728,3997.7,3996.3,0.2369]
[1760542849769,2.50199356,3996.9,3996.3,0.2369]
[1760542849934,1.728,3997.7,3996.3,2.73919933]
[1760542849935,2.50144858,3997.7,3996.3,2.73919933]
[1760542850131,2.50125629,3998.0,3996.6,2.50207817]
[1760542850335,2.50185854,3997.1,3996.4,0.4306]
[1760542850563,2.50170948,3997.3,3996.4,0.4306]
[1760542850859,1.728,3997.7,3996.5,2.50218941]
[1760542851067,0.2099,3998.9,3996.6,2.93272397]
[1760542851246,2.50147885,3997.7,3996.9,2.50192628]
[1760542851447,2.50157761,3997.5,3996.8,2.50199969]
[1760542851751,2.5016039,3997.5,3996.7,0.2932724]
[1760542851938,2.50170193,3997.3,3996.7,0.2932724]
[1760542852281,2.50171159,3997.3,3996.6,2.93270803]
[1760542852465,2.50162533,3997.5,3996.7,2.5020114]
[1760542852662,0.2172,3997.9,3996.6,0.4306]
[1760542852888,1.728,3998.2,3996.6,0.4306]
[1760542853207,1.728,3997.8,3996.3,0.2369]
[1760542853414,0.2162,3997.7,3996.3,0.2369]
[1760542853588,0.2162,3997.7,3994.9,0.2369]
[1760542853589,0.6336,3997.6,3995.5,0.4306]
[1760542853787,2.50226088,3996.4,3995.5,2.9334026]
[1760542853991,0.1214,3998.4,3996.3,0.2369]
[1760542854181,2.50144857,3997.7,3997.0,2.50187434]
[1760542854510,2.50148391,3997.7,3997.1,0.2171]
[1760542854887,2.50138333,3997.8,3997.1,2.71887056]
[1760542855089,0.1223,3998.4,3997.1,0.2171]
[1760542855269,2.50161374,3997.5,3997.1,0.2171]
[1760542855470,2.50163754,3997.4,3996.5,0.4285]
[1760542855808,1.75304711,3997.6,3996.5,0.4285]
[1760542855809,2.52676457,3997.3,3996.6,2.50212158]
[1760542856011,2.50212185,3996.7,3996.0,0.4285]
[1760542856192,2.50181057,3997.2,3996.4,2.50224942]
[1760542856367,2.50181057,3997.2,3996.1,0.2171]
[1760542856368,2.50174895,3997.3,3996.5,2.93068442]
[1760542856561,0.2144,3997.9,3996.5,0.4285]
[1760542856794,1.728,3998.6,3996.5,0.4285]
[1760542856960,2.50151957,3997.6,3996.6,2.50211346]
[1760542857160,2.50151957,3997.6,3996.5,0.4285]
[1760542857161,2.50179345,3997.2,3996.7,0.29306135]
[1760542857396,2.50179345,3997.2,3996.2,2.50237171]
[1760542857397,0.1248,3996.9,3996.2,0.1248]
[1760542857598,2.50150123,3997.6,3996.1,0.2171]
[1760542857599,0.1248,3996.6,3996.1,0.2171]
[1760542857899,0.1248,3996.3,3996.1,0.2171]
[1760542858605,0.1248,3996.3,3996.2,0.4285]
[1760542858763,0.2152,3996.7,3995.0,0.4285]
[1760542858964,2.50281255,3995.6,3995.1,0.2171]
[1760542859210,2.50282927,3995.5,3995.1,0.2171]
[1760542859365,12.11652996,3996.5,3995.1,0.2171]
[1760542859708,1.728,3996.5,3995.1,0.2171]
[1760542859872,2.50251422,3996.0,3995.2,0.4285]
[1760542860060,2.50279759,3995.6,3995.1,0.2171]
[1760542860268,0.02504711,3995.5,3993.1,0.002]
[1760542860564,1.75304711,3995.5,3993.7,0.2171]
[1760542860797,10.38852996,3995.6,3994.4,2.50345365]
[1760542861097,1.75304711,3995.5,3993.7,0.2171]
[1760542861302,2.50336925,3994.7,3993.8,2.50382811]
[1760542861609,4.23092598,3995.4,3993.9,0.02503818]
[1760542861899,0.2156,3995.7,3994.4,2.50347903]
[1760542862097,2.50308435,3995.1,3994.4,2.50347903]
[1760542862287,2.50305545,3995.2,3994.4,2.5035049]
[1760542862493,0.2156,3995.7,3994.5,0.4285]
[1760542862666,2.50267974,3995.8,3995.0,2.50307707]
[1760542862870,10.38852996,3996.2,3995.1,0.2171]
[1760542863067,2.50225202,3996.4,3995.1,0.2171]
[1760542863272,2.50264286,3995.8,3994.6,0.31491184]
[1760542863567,10.38852996,3996.8,3994.7,1.0621]
[1760542863772,0.2189,3997.1,3995.7,2.50266306]
[1760542864135,2.50157463,3997.5,3995.6,0.2171]
[1760542864401,2.50167387,3997.4,3996.6,2.50212618]
[1760542864604,0.2189,3997.8,3996.5,0.6456]
[1760542864812,2.50145258,3997.7,3996.6,2.5021268]
[1760542864982,0.2189,3997.8,3996.5,0.6456]
[1760542865170,0.2189,3997.8,3995.9,0.6336]
[1760542865171,0.3316,3997.7,3995.9,0.6336]
[1760542865380,0.2189,3997.8,3995.6,0.2171]
[1760542865381,0.001,3998.2,3996.6,0.6336]
[1760542865678,0.001,3998.2,3997.6,2.71856906]
[1760542865867,0.001,3998.2,3997.7,2.50143832]
[1760542866068,0.001,3998.2,3997.6,0.2171]
[1760542866307,0.001,3998.2,3997.8,0.4749]
[1760542866811,0.001,3998.2,3998.1,0.2273]
[1760542866970,0.001,3998.2,3997.6,2.71855154]
[1760542867170,0.001,3998.2,3998.1,2.50118806]
[1760542867370,0.001,3998.2,3998.1,0.2273]
[1760542867590,0.001,3998.2,3997.6,0.48895515]
[1760542867591,0.001,3998.2,3997.6,0.2171]
[1760542868028,0.001,3998.2,3997.7,2.50138303]
[1760542868230,0.001,3998.2,3997.8,2.50131372]
[1760542868538,0.001,3998.2,3997.9,0.02158891]
[1760542868741,0.001,3998.2,3998.1,2.72848806]
[1760542869046,0.001,3998.2,3998.1,0.2273]
[1760542869202,0.001,3998.2,3998.1,0.7022]
[1760542869537,0.001,3998.2,3998.1,3.20338806]
[1760542870040,0.001,3998.2,3997.6,0.2171]
[1760542870346,0.001,3998.2,3997.4,0.4749]
[1760542870347,0.1248,3997.9,3996.7,0.71106]
[1760542870530,2.50144777,3997.7,3996.7,0.4749]
[1760542870844,0.1248,3997.2,3996.7,0.4749]
[1760542871139,0.1248,3997.2,3996.0,0.2273]
[1760542871140,2.50218571,3996.6,3996.0,0.2273]
[1760542871342,2.50218571,3996.6,3995.5,0.4749]
[1760542871343,0.02504711,3996.5,3995.5,0.4749]
[1760542871678,0.3291,3996.8,3995.6,0.3357]
[1760542871801,0.3291,3996.8,3995.2,0.2273]
[1760542871997,2.50268154,3995.8,3995.0,2.50311193]
[1760542872239,2.50268154,3995.8,3994.9,3.20537449]
[1760542872240,2.50268359,3995.8,3994.9,3.20537449]
[1760542872441,0.02504711,3995.7,3994.9,0.2273]
[1760542872736,0.3284,3996.0,3994.6,0.2273]
[1760542873103,0.2116,3996.0,3994.7,2.50325712]
[1760542873298,0.2116,3996.0,3994.6,0.2273]
[1760542873503,4.23083982,3995.5,3994.0,0.002]
[1760542873703,2.50369294,3994.1,3994.0,0.002]
[1760542873944,2.52874005,3994.1,3994.0,0.002]
[1760542874498,0.2208,3994.7,3994.0,0.002]
[1760542874704,2.50369294,3994.1,3994.0,0.002]
[1760542874900,2.52874005,3994.1,3994.0,0.002]
[1760542875127,2.64664005,3994.1,3994.0,0.002]
[1760542875337,10.38852996,3994.6,3994.0,0.002]
[1760542875534,1.728,3994.5,3994.0,0.002]
[1760542875718,0.1179,3994.9,3994.0,0.002]
[1760542875719,2.50325392,3994.9,3994.0,0.002]
[1760542875916,2.50324485,3994.9,3994.0,2.50574788]
[1760542876139,2.50326196,3994.8,3994.0,2.50575214]
[1760542876346,0.2116,3996.0,3994.1,0.25233692]
[1760542876519,0.3262,3996.0,3994.7,2.50325943]
[1760542876724,0.1157,3996.6,3995.3,2.50293182]
[1760542876936,0.2107,3996.3,3995.1,0.2273]
[1760542877252,0.2107,3996.3,3995.5,2.50279037]
[1760542877450,0.2107,3997.1,3995.5,0.72517904]
[1760542877760,0.2107,3997.1,3995.2,1.728]
[1760542877761,2.50181882,3997.1,3995.2,1.728]
[1760542877908,0.1176,3997.2,3995.2,0.4749]
[1760542878235,1.728,3997.1,3995.3,2.50294095]
[1760542878437,1.728,3997.1,3995.4,0.4933141]
[1760542878745,0.6336,3996.9,3994.6,0.4749]
[1760542878946,2.50218941,3996.5,3993.9,2.97869671]
[1760542879154,2.50237725,3996.2,3993.2,0.2293]
[1760542879457,0.6336,3995.7,3993.4,0.4749]
[1760542879659,1.728,3995.4,3993.4,0.4749]
[1760542879956,8.70033491,3995.9,3993.2,0.2293]
[1760542879957,0.2219,3995.7,3994.1,0.7022]
[1760542880252,2.50335412,3994.7,3993.6,0.002]
[1760542880412,2.50330254,3994.8,3994.0,2.5057504]
[1760542880610,0.107,3995.6,3994.0,0.50296885]
[1760542880815,2.5029277,3995.4,3994.2,2.50363026]
[1760542881118,0.1248,3994.5,3994.4,2.50350254]
[1760542881442,0.107,3995.6,3994.4,2.50350254]
[1760542881443,0.1248,3995.0,3994.4,0.62473504]
[1760542881664,0.2241,3996.8,3994.9,2.50319156]
[1760542881817,0.1093,3997.7,3995.3,2.3616]
[1760542882012,0.001,3998.2,3995.2,2.5030036]
[1760542882013,0.001,3998.2,3996.5,2.50216688]
[1760542882210,2.50137575,3997.8,3996.6,0.2273]
[1760542882648,0.1103,3997.8,3996.2,2.72967071]
[1760542882863,0.1103,3997.8,3995.9,2.50250286]
[1760542883013,0.1103,3997.7,3995.9,0.29774029]
[1760542883214,0.1103,3997.7,3995.8,0.4749]
[1760542883466,2.50252181,3996.0,3995.0,0.7022]
[1760542883662,0.2218,3996.4,3995.0,0.2273]
[1760542883954,0.2218,3996.4,3995.1,0.2273]
[1760542884257,2.50237725,3996.2,3994.4,2.97839778]
[1760542884424,0.02504711,3996.1,3994.4,3.56547261]
[1760542884625,2.50290008,3995.4,3994.5,2.50343725]
[1760542884943,2.5031346,3995.0,3994.4,1.06196978]
[1760542885132,2.50305678,3995.2,3994.4,0.4749]
[1760542885318,2.50293084,3995.4,3994.4,0.4749]
[1760542885519,2.50296729,3995.3,3994.5,2.50343646]
[1760542885837,1.728,3996.2,3994.5,2.50343646]
[1760542885838,2.50280246,3995.6,3994.8,2.50322969]
[1760542886037,2.50298993,3995.3,3994.4,0.4749]
[1760542886239,2.50298993,3995.3,3994.0,0.002]
[1760542886240,2.50369294,3994.1,3994.0,0.002]
[1760542886442,2.52874005,3994.1,3994.0,0.002]
[1760542886650,2.62894005,3994.1,3994.0,0.002]
[1760542887356,4.35694005,3994.1,3994.0,0.002]
[1760542887517,4.33189294,3994.1,3994.0,0.002]
[1760542887918,4.23169294,3994.1,3994.0,0.002]
[1760542888352,4.35694005,3994.1,3994.0,0.002]
[1760542888548,4.96549294,3994.1,3994.0,0.002]
[1760542888746,4.86554371,3993.7,3993.6,1e-08]
[1760542889062,4.23225723,3993.2,3993.1,1e-08]
[1760542889264,0.2166,3994.3,3993.1,1e-08]
[1760542889560,0.1047,3994.7,3993.1,0.47490001]
[1760542889561,1.728,3994.6,3993.1,0.47490001]
[1760542889867,2.50380186,3994.0,3993.1,0.47490001]
[1760542890024,2.50425723,3993.2,3993.1,1e-08]
[1760542890218,17.99487923,3993.2,3993.1,1e-08]
[1760542890445,9.55488223,3993.2,3993.1,1e-08]
[1760542890670,9.55488223,3993.2,3990.4,0.2273]
[1760542890671,2.50448816,3992.9,3990.4,0.2273]
[1760542890942,6.417025,3993.2,3990.7,2.3616]
[1760542890943,0.2144,3993.2,3990.7,2.3616]
[1760542891152,0.2144,3993.2,3990.9,0.6336]
[1760542891351,1.728,3993.8,3991.4,0.6336]
[1760542891551,0.1248,3992.7,3992.1,2.50494727]
[1760542891785,0.1248,3992.7,3992.2,0.4749]
[1760542891937,0.1248,3992.7,3992.5,2.50463868]
[1760542892141,0.1248,3992.7,3992.3,0.4749]
[1760542892451,0.1248,3992.7,3992.1,0.2273]
[1760542892672,0.2207,3994.0,3991.1,0.4749]
[1760542892673,0.02504711,3992.6,3991.1,0.4749]
[1760542892842,0.1248,3992.1,3991.6,0.4749]
[1760542893178,1.8371,3993.7,3991.8,0.1248]
[1760542893179,0.1248,3992.5,3991.8,0.1248]
[1760542893379,2.50455539,3992.8,3991.7,2.98004376]
[1760542893682,2.50455539,3992.8,3991.1,1.728]
[1760542893683,0.1248,3991.8,3991.1,2.50557173]
[1760542893979,1.728,3993.7,3991.1,2.50557173]
[1760542893980,0.1248,3991.5,3991.1,0.2273]
[1760542894143,0.1248,3991.3,3991.1,0.2273]
[1760542894339,0.1248,3991.3,3990.5,0.4749]
[1760542894544,0.1248,3991.3,3990.6,0.4749]
[1760542894786,0.1248,3991.3,3990.7,2.50582604]
[1760542894787,0.124,3991.3,3990.7,2.50582604]
[1760542895079,0.124,3991.3,3991.2,0.2273]
[1760542895237,1.728,3992.3,3991.2,0.2273]
[1760542895446,0.1091,3992.4,3990.5,2.50594051]
[1760542895447,0.02504711,3992.2,3990.5,2.50594051]
[1760542895645,2.50513278,3991.9,3990.4,2.73330178]
[1760542895955,1.728,3992.0,3990.4,0.94023018]
[1760542896157,2.5052009,3991.7,3990.4,0.6669]
[1760542896359,0.13734711,3991.7,3990.0,0.2273]
[1760542896666,1.728,3991.5,3990.0,0.2273]
[1760542897179,0.13734711,3991.4,3989.4,0.4396]
[1760542897381,0.1123,3991.4,3989.7,0.2242]
[1760542897581,0.6336,3991.3,3989.4,0.4396]
[1760542897784,0.77094711,3991.2,3989.0,0.2273]
[1760542898105,2.3616,3990.8,3988.2,0.4396]
[1760542898316,0.2154,3990.7,3988.8,2.50698971]
[1760542898609,0.1155,3991.3,3989.2,0.6336]
[1760542898914,0.2154,3991.4,3990.4,0.002]
[1760542899411,0.2144,3991.8,3990.4,0.002]
[1760542899897,1.9424,3991.8,3990.7,2.50581608]
[1760542900206,0.2144,3991.8,3990.4,0.002]
[1760542900416,0.1175,3991.7,3990.4,0.002]
[1760542900778,0.217,3991.9,3990.5,0.4396]
[1760542900975,0.217,3992.4,3990.6,0.6336]
[1760542901211,0.3333,3993.1,3990.9,2.50570046]
[1760542901414,0.2268,3993.3,3992.0,2.50499206]
[1760542901585,2.7310151,3993.3,3991.9,0.2242]
[1760542901916,2.52931286,3993.2,3991.7,0.4396]
[1760542902114,0.12404711,3993.2,3991.5,0.2242]
[1760542902412,2.50451091,3992.8,3991.6,2.50526104]
[1760542902577,0.2255,3992.9,3991.9,2.50506987]
[1760542902778,1.728,3993.1,3992.0,2.50498998]
[1760542903113,0.2268,3993.3,3992.1,0.02504947]
[1760542903315,0.1003,3993.2,3991.5,0.2242]
[1760542903476,1.728,3993.1,3991.6,0.6638]
[1760542903673,0.02504711,3993.0,3991.6,0.6638]
[1760542903979,0.02504711,3993.0,3991.7,2.50514445]
[1760542903980,1.728,3992.9,3991.7,2.50514445]
[1760542904285,2.50455699,3992.8,3991.5,2.50526721]
[1760542904489,0.3236,3993.1,3991.4,0.2242]
[1760542904686,0.3236,3993.1,3990.6,0.2242]
[1760542904687,0.6336,3993.0,3990.6,0.2242]
[1760542904886,1.728,3992.6,3990.4,0.002]
[1760542905100,1.728,3992.1,3990.4,0.002]
[1760542905300,2.50482178,3992.3,3990.4,0.002]
[1760542905473,2.5054326,3991.4,3990.4,0.002]
[1760542905674,1.728,3992.1,3990.4,0.27523257]
[1760542906013,0.1248,3991.0,3990.4,0.002]
[1760542906187,2.50537165,3991.5,3990.4,0.002]
[1760542906514,1.728,3992.2,3990.4,0.002]
[1760542906515,0.2134,3991.1,3990.4,0.002]
[1760542906811,0.1001,3992.4,3990.5,0.4396]
[1760542906984,2.50494235,3992.2,3990.9,2.50569626]
[1760542907314,2.50500854,3992.1,3990.9,2.50564959]
[1760542907515,0.1001,3992.4,3990.5,0.4396]
[1760542907814,0.1001,3992.4,3991.2,2.5054978]
[1760542908013,0.1001,3992.4,3991.1,0.2242]
[1760542908187,1.728,3992.2,3991.1,0.2242]
[1760542908517,1.728,3992.2,3990.9,2.50569674]
[1760542908704,0.1012,3992.5,3991.2,0.2242]
[1760542909082,0.2268,3992.9,3991.3,0.46465449]
[1760542909413,0.2268,3993.3,3991.9,2.50501555]
[1760542909624,0.2268,3993.3,3991.8,2.50513552]
[1760542909779,0.2268,3993.3,3991.7,0.4396]
[1760542909780,0.2268,3993.3,3992.2,2.50482433]
[1760542910126,2.72955905,3993.7,3992.6,2.50461904]
[1760542910308,2.50424189,3993.3,3992.3,0.2242]
[1760542910475,0.02504711,3993.2,3991.8,0.2242]
[1760542910821,0.1037,3993.6,3991.8,0.2242]
[1760542910822,0.1037,3993.6,3991.9,2.50507277]
[1760542910981,2.50451086,3992.8,3991.8,0.2242]
[1760542911177,1.728,3993.4,3991.8,0.2242]
[1760542911378,2.50451474,3992.8,3991.8,2.72930873]
[1760542911599,2.50406911,3993.5,3992.0,2.50495239]
[1760542911803,2.50421605,3993.3,3992.0,2.50501002]
[1760542912001,1.728,3993.5,3992.2,2.50488452]
[1760542912205,1.728,3993.5,3992.3,2.50482178]
[1760542912376,0.1037,3994.2,3992.4,0.46464759]
[1760542912926,2.50307237,3995.1,3992.4,0.46464759]
[1760542912927,2.50312655,3995.1,3992.6,2.50463357]
[1760542913149,8.91153491,3995.2,3991.8,0.7916229]
[1760542913150,2.50381868,3993.9,3992.7,0.4396]
[1760542913326,0.2231,3993.9,3992.7,0.4396]
[1760542913526,0.2231,3993.9,3991.8,0.7916229]
[1760542913527,2.50446571,3992.9,3992.0,0.4396]
[1760542913726,2.50437993,3993.1,3992.0,0.4396]
[1760542913900,2.52944113,3993.0,3991.8,0.2242]
[1760542914100,0.02504711,3993.0,3991.8,0.2242]
[1760542914333,2.50465568,3992.6,3991.8,0.2242]
[1760542914634,2.52980479,3992.5,3991.8,0.2242]
[1760542914810,2.52980479,3992.5,3991.5,0.4396]
[1760542914811,0.2193,3992.8,3991.5,0.4396]
[1760542915006,0.1014,3993.4,3991.6,0.02505261]
[1760542915210,2.50433579,3993.1,3991.7,0.4452]
[1760542915395,0.3308,3993.9,3991.8,0.29503998]
[1760542915599,2.50442996,3993.0,3991.7,2.95039013]
[1760542915834,0.1077,3993.3,3991.7,0.4452]
[1760542916135,0.1077,3993.3,3991.2,0.2242]
[1760542916136,1.8357,3993.3,3991.2,0.2242]
[1760542916338,0.1248,3991.7,3991.2,0.2242]
[1760542916637,2.50497487,3992.1,3991.2,0.2242]
[1760542916638,0.1248,3991.5,3991.2,0.2242]
[1760542916896,0.1248,3991.5,3991.3,0.4452]
[1760542917014,0.1248,3992.3,3991.4,0.1248]
[1760542917216,0.1248,3992.3,3991.5,0.4452]
[1760542917403,0.1248,3992.3,3991.7,0.1248]
[1760542917603,0.1088,3993.8,3992.2,2.50487401]
[1760542917850,0.1088,3994.4,3992.3,0.4452]
[1760542918173,2.50393278,3993.8,3992.4,2.50475904]
[1760542918311,0.1088,3994.4,3992.5,0.4452]
[1760542918643,2.50404968,3993.6,3992.5,2.94987866]
[1760542918937,0.001,3994.7,3992.8,2.50445621]
[1760542919139,0.02604711,3994.7,3992.9,0.4452]
[1760542919343,0.1126,3994.6,3992.9,0.4452]
[1760542919542,2.50337956,3994.6,3992.9,0.4452]
[1760542919834,0.02504711,3994.5,3992.9,0.4452]
[1760542920144,2.50390335,3993.8,3992.9,0.4452]
[1760542920315,2.5034476,3994.5,3992.4,0.4452]
[1760542920316,1.728,3994.4,3992.4,0.4452]
[1760542920516,0.001,3994.7,3992.4,0.4452]
[1760542920517,0.001,3994.7,3992.5,0.02504696]
[1760542920716,0.001,3994.7,3993.0,0.6336]
[1760542920916,0.001,3994.7,3992.6,0.4452]
[1760542920917,0.001,3994.7,3994.6,0.2313]
[1760542921117,0.001,3994.7,3993.7,2.217]
[1760542921415,0.001,3994.7,3993.8,0.02503881]
[1760542921736,0.001,3994.7,3993.2,0.6765]
[1760542921737,0.001,3994.7,3993.4,0.4452]
[1760542921924,2.50376762,3994.0,3993.2,0.2313]
[1760542922239,0.001,3994.7,3992.8,0.4452]
[1760542922240,0.2193,3994.6,3992.8,0.4452]
[1760542922539,2.50403303,3993.6,3992.7,0.2313]
[1760542922834,0.02504711,3993.5,3992.7,0.2313]
[1760542923036,2.50439712,3993.0,3992.3,0.6765]
[1760542923246,0.326,3993.9,3992.3,0.6765]
[1760542923416,1.728,3993.3,3991.5,0.2313]
[1760542923614,1.728,3993.1,3991.2,0.2242]
[1760542923816,0.02284306,3992.8,3990.8,0.002]
[1760542924035,1.728,3991.8,3990.8,0.002]
[1760542924233,2.50463357,3992.6,3990.8,0.002]
[1760542924473,0.6336,3992.5,3990.8,0.002]
[1760542924675,2.50532868,3991.5,3990.8,0.002]
[1760542924876,0.217,3992.7,3990.9,0.4452]
[1760542925067,2.50504557,3992.0,3990.9,0.74050088]
[1760542925261,2.50496089,3992.1,3990.9,2.95087398]
[1760542925462,1.728,3992.4,3990.9,0.4452]
[1760542925688,1.945,3992.7,3991.0,2.50563768]
[1760542925861,2.5048371,3992.3,3991.1,0.6542]
[1760542926061,0.02504711,3992.2,3990.8,0.002]
[1760542926264,2.50564388,3991.0,3990.8,0.002]
[1760542926466,2.83480046,3990.9,3990.8,0.002]
[1760542926652,0.1023,3991.9,3990.8,0.002]
[1760542926851,2.50546444,3991.3,3990.8,0.002]
[1760542927083,2.50524828,3991.7,3990.8,0.002]
[1760542927286,0.1034,3991.2,3990.8,0.002]
[1760542927488,2.50570046,3990.9,3990.8,0.002]
[1760542927961,2.60910046,3990.9,3990.8,0.002]
[1760542928186,4.36214757,3990.9,3990.8,0.002]
[1760542928385,4.33710046,3990.9,3990.8,0.002]
[1760542928586,4.23370046,3990.9,3990.8,0.002]
[1760542929008,4.97070046,3990.9,3990.8,0.002]
[1760542930411,4.97070046,3990.9,3988.1,0.4286]
[1760542930412,0.6336,3990.5,3988.1,0.4286]
[1760542930585,2.50628251,3990.0,3988.5,0.1248]
[1760542930785,2.50579067,3990.8,3989.0,2.50683669]
[1760542930786,0.1248,3989.3,3989.0,2.50683669]
[1760542930972,0.1248,3989.3,3989.2,0.2256]
[1760542931419,0.1248,3989.3,3988.5,0.1248]
[1760542931577,0.1248,3989.3,3988.6,0.4286]
[1760542931775,0.2191,3990.8,3989.2,0.2256]
[1760542932082,0.1248,3989.8,3989.3,0.4286]
[1760542932295,0.2291,3992.0,3989.2,0.2256]
[1760542932296,0.2173,3991.5,3989.4,2.93523625]
[1760542932506,0.1248,3990.5,3990.0,2.50621447]
[1760542932703,0.1248,3990.5,3990.1,0.6542]
[1760542932911,0.099,3991.9,3990.2,0.6542]
[1760542933181,0.099,3991.9,3990.3,2.50607723]
[1760542933378,0.1002,3992.6,3990.4,0.74462772]
[1760542933594,2.50499528,3992.1,3990.4,0.4286]
[1760542933807,0.1014,3992.5,3990.4,0.4286]
[1760542934011,0.1014,3992.5,3990.9,2.50567691]
[1760542934176,2.5052682,3991.6,3990.5,2.50589906]
[1760542934380,2.50519828,3991.7,3990.4,2.93456625]
[1760542934699,2.60483362,3992.6,3990.8,2.50576319]
[1760542934896,0.1014,3992.5,3990.2,0.2256]
[1760542935094,2.5062577,3990.1,3989.4,0.2256]
[1760542935294,0.2234,3991.0,3989.4,0.25066642]
[1760542935617,2.50576325,3990.8,3989.3,0.002]
[1760542935818,0.02504711,3990.7,3989.3,0.002]
[1760542936016,2.50612029,3990.3,3989.3,0.002]
[1760542936188,0.1002,3990.6,3989.3,0.002]
[1760542936383,0.2234,3991.0,3989.3,0.002]
[1760542936622,0.2247,3992.0,3989.3,0.4306]
[1760542936827,0.3237,3992.0,3989.3,0.4306]
[1760542936986,2.50507277,3991.9,3990.2,2.50612617]
[1760542937187,0.6336,3991.7,3989.5,2.9351792]
[1760542937413,1.827,3991.6,3989.8,2.50633948]
[1760542937687,2.50557974,3991.1,3990.1,2.50614586]
[1760542937886,0.2247,3992.0,3990.2,0.6542]
[1760542938110,2.50537971,3991.5,3990.4,2.50601443]
[1760542938315,2.50543442,3991.4,3990.4,2.97361814]
[1760542938493,2.5056097,3991.1,3990.2,0.2256]
[1760542938693,2.50580842,3990.8,3989.6,0.4286]
[1760542938985,2.0494,3991.2,3989.6,0.4286]
[1760542939184,2.50599041,3990.5,3989.6,0.4286]
[1760542939422,2.0494,3991.2,3989.6,3.22882162]
[1760542939585,0.3214,3991.2,3989.6,0.72231748]
[1760542939793,2.50588076,3990.7,3989.8,2.50637192]
[1760542940088,2.72973755,3992.0,3989.9,2.93490006]
[1760542940089,0.099,3991.9,3989.9,2.93490006]
[1760542940301,1.728,3991.4,3989.3,0.002]
[1760542940492,2.50597074,3990.5,3989.5,2.50653673]
[1760542940831,0.2222,3990.9,3989.3,0.002]
[1760542941008,2.50563768,3991.0,3989.9,2.50627844]
[1760542941327,2.50522134,3991.7,3989.3,0.02706705]
[1760542941328,0.1015,3991.9,3990.0,0.4286]
[1760542941523,0.12654711,3991.8,3989.3,0.002]
[1760542941818,2.50560532,3991.1,3989.5,0.4286]
[1760542941985,0.2247,3992.0,3989.5,0.4286]
[1760542941986,0.2247,3992.0,3990.6,2.50588774]
[1760542942184,2.50475904,3992.4,3990.7,0.2256]
[1760542942403,0.02504711,3992.3,3990.7,0.2256]
[1760542942603,15.0,3992.5,3990.3,0.2256]
[1760542942897,2.50557641,3991.1,3990.3,0.2256]
[1760542943097,0.1248,3990.9,3990.3,0.2256]
[1760542943302,0.1248,3990.9,3990.3,0.76187541]
[1760542943630,0.1248,3990.9,3990.4,0.4286]
[1760542943790,0.1248,3990.9,3990.4,2.93459929]
[1760542943990,0.1248,3990.9,3990.3,0.2256]
[1760542944224,0.1248,3990.4,3989.7,0.1248]
[1760542944531,0.1248,3990.4,3989.5,2.50653645]
[1760542944826,0.1248,3990.0,3989.7,2.50645034]
[1760542944989,0.1248,3990.3,3989.8,0.45366391]
[1760542945194,0.1248,3990.8,3990.2,0.2256]
[1760542945493,0.099,3992.2,3990.2,0.2256]
[1760542945494,0.099,3991.7,3990.2,0.2256]
[1760542945698,1.728,3991.5,3990.0,2.50622029]
[1760542945910,0.001,3993.2,3990.2,2.50614004]